bitfinex/quotes_SOLUSD_20220306
["timestamp","ask_amount","ask_price","bid_price","bid_amount"]
[1646569910159,6.25303072,87.536,87.502,2.83613526]
[1646569910370,3.11954161,87.546,87.502,2.83613526]
[1646569910573,3.11954161,87.547,87.502,2.83613526]
[1646569910971,3.11954161,87.547,87.503,24.83269303]
[1646569911174,3.11954161,87.547,87.504,5.712]
[1646569911376,3.11954161,87.547,87.504,8.54813526]
[1646569911572,3.11954161,87.548,87.51,17.1434]
[1646569911773,3.11954161,87.554,87.51,17.1434]
[1646569911971,5.712,87.57,87.511,8.54813526]
[1646569911972,3.11954161,87.556,87.511,8.54813526]
[1646569912177,6.25139614,87.553,87.511,8.54813526]
[1646569912373,59.3449531,87.558,87.512,2.83613526]
[1646569912575,6.25139614,87.557,87.513,5.712]
[1646569912974,6.25139614,87.557,87.514,2.83613526]
[1646569913376,6.25139614,87.569,87.515,5.711]
[1646569913574,9.37093775,87.57,87.515,120.411]
[1646569913776,6.25139614,87.572,87.516,2.83613526]
[1646569913973,3.11954161,87.574,87.517,5.711]
[1646569914177,52.61120801,87.579,87.517,5.711]
[1646569914373,5.711,87.578,87.516,24.83269303]
[1646569914574,5.711,87.572,87.517,5.711]
[1646569914774,11.96073346,87.572,87.517,5.711]
[1646569914975,6.24973346,87.571,87.511,16.802]
[1646569915173,5.711,87.57,87.52,17.1419]
[1646569915373,6.24973346,87.569,87.52,17.1419]
[1646569915574,6.24973346,87.569,87.521,5.711]
[1646569915773,6.24973346,87.572,87.521,5.711]
[1646569916377,120.411,87.571,87.505,5.711]
[1646569916575,5.711,87.571,87.489,5.711]
[1646569916774,9.36927507,87.572,87.505,5.711]
[1646569916974,11.96073346,87.571,87.506,2.83613526]
[1646569917175,9.36927507,87.57,87.506,2.83613526]
[1646569917375,5.711,87.569,87.506,2.83613526]
[1646569917776,29.71343346,87.568,87.506,2.83613526]
[1646569917976,5.711,87.567,87.506,2.83613526]
[1646569918175,15.08027507,87.567,87.506,2.83613526]
[1646569918575,120.94973346,87.566,87.506,2.83613526]
[1646569918775,5.711,87.565,87.506,2.83613526]
[1646569918978,15.08027507,87.565,87.506,2.83613526]
[1646569919177,6.24973346,87.564,87.506,2.83613526]
[1646569919375,5.712,87.563,87.506,19.70643526]
[1646569919575,70.53897105,87.562,87.51,17.144]
[1646569919776,11.96073346,87.561,87.51,17.144]
[1646569919979,6.24973346,87.56,87.51,19.98013526]
[1646569920276,5.712,87.559,87.51,19.98013526]
[1646569920477,5.712,87.559,87.51,2.83613526]
[1646569920778,114.7,87.557,87.49,22.49585708]
[1646569920977,114.7,87.557,87.49,25.33199234]
[1646569921178,120.95064994,87.556,87.49,25.33199234]
[1646569921377,5.712,87.555,87.49,2.83613526]
[1646569921578,114.7,87.553,87.49,2.83613526]
[1646569921776,114.7,87.551,87.49,2.83613526]
[1646569921980,5.712,87.55,87.49,2.83613526]
[1646569922177,6.25064994,87.549,87.491,22.49585708]
[1646569922378,49.21069234,87.547,87.491,22.49585708]
[1646569922577,11.96364994,87.546,87.491,22.49585708]
[1646569922779,30.1261,87.546,87.491,22.49585708]
[1646569922980,6.25175869,87.545,87.48,17.1497]
[1646569923180,120.413,87.544,87.484,14.78128782]
[1646569923379,120.413,87.544,87.481,17.512]
[1646569923579,117.81954161,87.542,87.482,5.713]
[1646569923780,121.42,87.542,87.471,64.6142739]
[1646569923979,114.7,87.539,87.471,64.6142739]
[1646569924182,5.713,87.538,87.471,64.6142739]
[1646569924380,114.7,87.536,87.465,22.49585708]
[1646569924579,6.72,87.542,87.456,14.72842115]
[1646569924580,3.11954161,87.529,87.456,14.72842115]
[1646569924781,3.11954161,87.521,87.45,22.49585708]
[1646569924981,20.27974161,87.52,87.45,22.49585708]
[1646569925179,151.07985869,87.519,87.45,22.49585708]
[1646569925378,114.7,87.517,87.451,60.15165452]
[1646569925581,126.66675869,87.516,87.451,60.15165452]
[1646569925784,6.25175869,87.515,87.451,60.15165452]
[1646569925984,120.415,87.514,87.45,22.49585708]
[1646569926380,114.2,87.512,87.45,22.49585708]
[1646569926581,114.2,87.509,87.451,2.83613526]
[1646569926783,114.2,87.507,87.451,2.83613526]
[1646569926981,5.715,87.506,87.445,57.94202513]
[1646569927181,6.25175869,87.505,87.444,24.04423431]
[1646569927480,5.715,87.504,87.444,24.04423431]
[1646569927681,119.915,87.504,87.444,24.04423431]
[1646569927883,114.2,87.499,87.431,2.83613526]
[1646569928181,114.2,87.495,87.431,2.83613526]
[1646569928380,5.716,87.494,87.431,2.83613526]
[1646569928583,114.2,87.493,87.431,2.83613526]
[1646569928881,0.49529178,87.49,87.412,2.83613526]
[1646569929081,114.2,87.488,87.412,2.83613526]
[1646569929280,114.2,87.486,87.413,22.45477708]
[1646569929485,114.2,87.484,87.414,57.09636621]
[1646569929681,114.2,87.481,87.414,57.09636621]
[1646569929882,5.716,87.48,87.414,57.09636621]
[1646569930283,5.716,87.481,87.42,17.1626]
[1646569930687,5.716,87.481,87.421,2.83613526]
[1646569931285,120.416,87.481,87.421,2.83613526]
[1646569931486,5.716,87.481,87.421,2.83613526]
[1646569931684,5.716,87.483,87.421,49.18928664]
[1646569931886,24.6708,87.484,87.422,5.716]
[1646569932088,24.6708,87.484,87.422,8.55213526]
[1646569932385,24.6708,87.484,87.423,49.18928664]
[1646569932785,24.6708,87.484,87.424,49.18928664]
[1646569932988,24.6708,87.484,87.43,17.1606]
[1646569933186,24.6708,87.484,87.431,61.77545861]
[1646569933385,24.6708,87.484,87.431,108.12860999]
[1646569933588,24.6708,87.484,87.431,110.96474525]
[1646569933789,24.6708,87.484,87.432,2.83613526]
[1646569935089,24.6708,87.484,87.44,17.1576]
[1646569935490,24.6708,87.484,87.441,2.83613526]
[1646569936790,52.20137058,87.483,87.441,2.83613526]
[1646569936990,52.20137058,87.483,87.432,46.35315138]
[1646569937191,5.716,87.482,87.432,24.02144097]
[1646569937791,5.716,87.482,87.431,61.77545861]
[1646569938388,5.716,87.482,87.431,85.79689958]
[1646569938789,52.20137058,87.483,87.431,108.12860999]
[1646569938989,52.20137058,87.483,87.432,2.83613526]
[1646569939189,24.6708,87.484,87.432,2.83613526]
[1646569939489,24.6708,87.484,87.44,17.1586]
[1646569939893,24.6708,87.484,87.441,2.83613526]
[1646569941791,114.7,87.483,87.441,2.83613526]
[1646569941992,114.7,87.483,87.428,2.83613526]
[1646569942191,120.416,87.483,87.428,2.83613526]
[1646569942993,120.416,87.483,87.429,48.30199713]
[1646569944196,120.416,87.483,87.43,2.83613526]
[1646569944495,114.7,87.483,87.43,2.83613526]
[1646569944696,24.6708,87.484,87.43,2.83613526]
[1646569944898,5.716,87.483,87.43,2.83613526]
[1646569946095,5.716,87.483,87.43,49.18928664]
[1646569946295,5.716,87.483,87.43,66.34968664]
[1646569946495,24.6708,87.484,87.431,2.83613526]
[1646569946895,24.6708,87.484,87.432,46.35315138]
[1646569947296,24.6708,87.484,87.429,48.30199713]
[1646569947297,24.6708,87.484,87.44,17.1581]
[1646569947696,24.6708,87.484,87.441,2.83613526]
[1646569949699,24.6708,87.484,87.45,17.1566]
[1646569949899,3.11954161,87.509,87.45,17.1566]
[1646569950102,51.83567933,87.509,87.451,85.81586637]
[1646569950298,6.25424874,87.508,87.451,85.81586637]
[1646569950502,6.25424874,87.508,87.451,109.83730734]
[1646569950900,3.11954161,87.506,87.451,109.83730734]
[1646569951102,3.11954161,87.507,87.46,17.1544]
[1646569951302,51.83567933,87.509,87.46,17.1544]
[1646569951501,6.25355859,87.508,87.461,2.83613526]
[1646569952503,5.715,87.507,87.461,2.83613526]
[1646569952901,6.25355859,87.506,87.461,2.83613526]
[1646569953101,5.715,87.505,87.461,2.83613526]
[1646569953302,6.25355859,87.504,87.461,2.83613526]
[1646569953502,3.11954161,87.504,87.461,2.83613526]
[1646569953702,3.11954161,87.505,87.461,2.83613526]
[1646569954102,3.11954161,87.506,87.461,2.83613526]
[1646569954302,3.11954161,87.505,87.461,2.83613526]
[1646569954704,6.25355859,87.506,87.461,2.83613526]
[1646569954903,6.25355859,87.504,87.461,2.83613526]
[1646569955105,6.25355859,87.505,87.461,2.83613526]
[1646569955305,6.25355859,87.506,87.461,2.83613526]
[1646569956807,6.25355859,87.507,87.461,2.83613526]
[1646569957011,6.25355859,87.505,87.461,2.83613526]
[1646569957407,6.25355859,87.507,87.461,2.83613526]
[1646569957606,6.25355859,87.508,87.461,2.83613526]
[1646569958810,3.11954161,87.509,87.461,2.83613526]
[1646569959411,53.67767795,87.508,87.461,2.83613526]
[1646569959610,6.25355859,87.507,87.461,2.83613526]
[1646569959810,6.25355859,87.507,87.445,2.83613526]
[1646569959811,123.53454161,87.506,87.445,2.83613526]
[1646569960010,9.3731002,87.505,87.445,2.83613526]
[1646569960212,5.715,87.504,87.445,2.83613526]
[1646569960419,6.25355859,87.503,87.445,2.83613526]
[1646569960613,3.11954161,87.501,87.445,2.83613526]
[1646569960812,3.11954161,87.498,87.434,2.83613526]
[1646569961012,8.83554161,87.497,87.419,22.33171041]
[1646569961210,114.7,87.496,87.419,22.33171041]
[1646569961413,5.716,87.495,87.423,22.33171041]
[1646569961613,114.7,87.493,87.423,22.33171041]
[1646569961814,5.716,87.492,87.424,55.91064365]
[1646569962014,6.25355859,87.491,87.424,55.91064365]
[1646569962215,5.716,87.49,87.425,22.33171041]
[1646569962420,6.25355859,87.489,87.425,46.35315138]
[1646569962618,5.716,87.488,87.426,29.73744097]
[1646569962816,5.716,87.488,87.426,52.06915138]
[1646569963019,6.25355859,87.487,87.43,17.1604]
[1646569963215,1.5599195,87.466,87.43,17.1604]
[1646569963417,1.5599195,87.467,87.431,46.35315138]
[1646569963615,1.5599195,87.469,87.431,46.35315138]
[1646569963815,1.5599195,87.47,87.432,46.35315138]
[1646569964016,1.5599195,87.469,87.432,46.35315138]
[1646569964216,1.5599195,87.47,87.433,52.06915138]
[1646569964417,1.5599195,87.47,87.44,17.1583]
[1646569964617,1.5599195,87.477,87.441,5.716]
[1646569964818,1.5599195,87.478,87.441,32.57357623]
[1646569965017,1.5599195,87.477,87.441,54.90528664]
[1646569965217,1.5599195,87.477,87.442,46.35315138]
[1646569965419,1.5599195,87.477,87.443,5.716]
[1646569965819,1.5599195,87.477,87.442,96.91612775]
[1646569966019,1.5599195,87.476,87.442,96.91612775]
[1646569966219,1.5599195,87.474,87.442,96.91612775]
[1646569966832,1.5599195,87.476,87.442,96.91612775]
[1646569967231,1.5599195,87.476,87.443,22.33171041]
[1646569967433,1.5599195,87.474,87.443,22.33171041]
[1646569967832,1.5599195,87.473,87.444,5.716]
[1646569968236,1.5599195,87.473,87.444,28.04771041]
[1646569968432,1.5599195,87.473,87.445,24.02144097]
[1646569968634,1.5599195,87.473,87.446,5.716]
[1646569968832,1.5599195,87.485,87.446,28.04771041]
[1646569969032,1.5599195,87.482,87.447,46.35315138]
[1646569969232,1.5599195,87.483,87.447,46.35315138]
[1646569969432,1.5599195,87.483,87.448,46.35315138]
[1646569969834,1.5599195,87.483,87.45,17.1562]
[1646569970034,1.5599195,87.484,87.45,17.1562]
[1646569970235,1.5599195,87.483,87.451,52.06915138]
[1646569973242,1.5599195,87.484,87.451,52.06915138]
[1646569973444,1.5599195,87.483,87.451,52.06915138]
[1646569973643,1.5599195,87.486,87.46,17.1543]
[1646569973841,1.5599195,87.485,87.46,17.1543]
[1646569974243,1.5599195,87.486,87.46,17.1543]
[1646569974445,1.5599195,87.486,87.461,111.01525069]
[1646569974643,61.82928574,87.528,87.461,111.01525069]
[1646569974644,3.11954161,87.518,87.47,17.1483]
[1646569974844,3.11954161,87.535,87.471,114.7]
[1646569975044,3.11954161,87.542,87.471,138.72144097]
[1646569975245,3.11954161,87.543,87.473,114.7]
[1646569975443,3.11954161,87.545,87.481,114.7]
[1646569975644,3.11954161,87.545,87.483,114.7]
[1646569975845,3.11954161,87.543,87.483,114.7]
[1646569976049,3.11954161,87.551,87.485,114.7]
[1646569976345,3.11954161,87.551,87.485,137.03171041]
[1646569976644,5.713,87.55,87.486,24.02144097]
[1646569976845,6.25110523,87.55,87.491,114.7]
[1646569977044,6.25110523,87.551,87.491,114.7]
[1646569977245,3.11954161,87.561,87.492,24.02144097]
[1646569977445,3.11954161,87.56,87.493,114.7]
[1646569977646,3.11954161,87.568,87.493,137.03171041]
[1646569977846,5.712,87.567,87.495,114.7]
[1646569978145,6.24963849,87.566,87.501,114.7]
[1646569978346,3.11954161,87.575,87.501,114.7]
[1646569978550,3.11954161,87.586,87.503,114.7]
[1646569978756,3.11954161,87.606,87.506,57.5]
[1646569978946,5.711,87.61,87.506,57.5]
[1646569978947,5.711,87.61,87.507,172.2]
[1646569979145,5.711,87.614,87.507,266.37873495]
[1646569979347,52.41923836,87.588,87.521,114.7]
[1646569979546,3.11954161,87.617,87.523,114.7]
[1646569979745,5.711,87.616,87.523,114.7]
[1646569979947,5.711,87.616,87.525,114.7]
[1646569980146,5.711,87.617,87.525,114.7]
[1646569980346,5.711,87.619,87.527,114.7]
[1646569980547,50.2256969,87.612,87.527,114.7]
[1646569980748,51.87109217,87.598,87.531,114.7]
[1646569981148,51.87109217,87.598,87.533,114.7]
[1646569981549,5.71,87.597,87.535,114.7]
[1646569981748,5.71,87.618,87.535,114.7]
[1646569981953,5.71,87.618,87.537,114.7]
[1646569982147,5.71,87.619,87.541,114.7]
[1646569982548,52.66722001,87.598,87.543,114.7]
[1646569983049,52.66722001,87.598,87.544,167.46561059]
[1646569983349,52.66722001,87.598,87.55,17.1341]
[1646569983749,52.66722001,87.598,87.551,2.83613526]
[1646569986055,52.66722001,87.598,87.56,17.1336]
[1646569986251,52.66722001,87.598,87.556,57.1190918]
[1646569987054,52.66722001,87.598,87.552,24.56074038]
[1646569987252,52.66722001,87.598,87.55,17.1357]
[1646569987857,5.71,87.619,87.55,17.1357]
[1646569988055,5.71,87.619,87.551,46.88422534]
[1646569988257,22.8646,87.62,87.56,17.1281]
[1646569988654,22.8646,87.62,87.561,23.66200829]
[1646569988854,5.71,87.631,87.562,51.26516688]
[1646569989057,0.00373216,87.573,87.562,77.32351919]
[1646569989355,0.00373216,87.573,87.563,49.7203606]
[1646569989757,0.00373216,87.573,87.57,17.1198]
[1646569989956,48.20449657,87.672,87.564,118.4179607]
[1646569990156,5.708,87.671,87.571,41.41971506]
[1646569990358,5.708,87.671,87.571,64.64193211]
[1646569990661,5.708,87.671,87.564,47.8042]
[1646569990662,5.708,87.671,87.572,64.64193211]
[1646569991061,48.20449657,87.672,87.573,44.4046968]
[1646569991356,5.706,87.702,87.6,17.1203]
[1646569991759,5.706,87.702,87.601,64.64193211]
[1646569992158,5.706,87.702,87.602,17.75770677]
[1646569992360,61.85357439,87.701,87.602,81.57060552]
[1646569992662,5.704,87.7,87.603,2.83613526]
[1646569992884,2.64730284,87.7,87.602,63.81289875]
[1646569993559,5.704,87.699,87.61,17.1209]
[1646569993760,5.704,87.7,87.61,17.1209]
[1646569993960,61.85357439,87.701,87.611,49.7203606]
[1646569994362,61.85357439,87.701,87.612,26.05835231]
[1646569994659,61.85357439,87.701,87.613,2.83613526]
[1646569995261,4.97585963,87.699,87.613,2.83613526]
[1646569995468,5.704,87.698,87.613,2.83613526]
[1646569995761,17.1295,87.68,87.613,2.83613526]
[1646569995961,5.704,87.679,87.613,2.83613526]
[1646569996161,5.704,87.696,87.613,2.83613526]
[1646569996561,4.97585963,87.699,87.613,2.83613526]
[1646569996562,5.704,87.698,87.613,2.83613526]
[1646569996966,5.704,87.7,87.613,2.83613526]
[1646569998263,5.704,87.7,87.614,23.22221705]
[1646569998865,5.704,87.7,87.614,26.05835231]
[1646569999265,22.8294,87.7,87.614,2.83613526]
[1646569999467,120.404,87.7,87.614,2.83613526]
[1646569999666,68.81,87.699,87.614,2.83613526]
[1646569999866,5.46508697,87.693,87.614,2.83613526]
[1646570000067,5.704,87.692,87.614,2.83613526]
[1646570000466,114.7,87.689,87.614,2.83613526]
[1646570000666,5.704,87.688,87.614,2.83613526]
[1646570000867,114.7,87.689,87.602,23.22221705]
[1646570001072,120.10945695,87.683,87.599,2.83613526]
[1646570001270,120.10945695,87.683,87.574,23.22221705]
[1646570001271,68.81,87.68,87.574,23.22221705]
[1646570001468,17.14,87.65,87.574,23.22221705]
[1646570001666,17.14,87.65,87.498,16.8065]
[1646570001667,5.13258125,87.648,87.538,23.01993239]
[1646570001967,5.13258125,87.648,87.542,23.22221705]
[1646570001968,183.51,87.646,87.542,23.22221705]
[1646570002173,183.51,87.644,87.528,22.85741813]
[1646570002366,0.53153891,87.643,87.528,22.85741813]
[1646570002667,0.53153891,87.641,87.528,22.85741813]
[1646570002867,4.78154116,87.639,87.528,22.85741813]
[1646570003080,183.51,87.637,87.529,64.65697365]
[1646570003266,114.7,87.619,87.529,64.65697365]
[1646570003469,4.43912727,87.628,87.529,64.65697365]
[1646570003470,114.7,87.617,87.53,22.85741813]
[1646570003668,114.7,87.615,87.53,22.85741813]
[1646570003867,5.708,87.614,87.531,23.01993239]
[1646570004067,114.7,87.617,87.531,23.01993239]
[1646570004266,114.7,87.617,87.532,22.8139808]
[1646570004667,5.708,87.616,87.533,23.01993239]
[1646570005169,5.708,87.616,87.534,22.8139808]
[1646570005567,5.708,87.616,87.535,23.01993239]
[1646570006067,5.708,87.616,87.536,22.8139808]
[1646570006469,68.81,87.614,87.536,22.8139808]
[1646570006669,120.52409829,87.615,87.523,22.8139808]
[1646570006670,184.04153891,87.609,87.523,22.8139808]
[1646570006868,0.53153891,87.607,87.523,22.8139808]
[1646570007070,0.53153891,87.604,87.454,47.6419]
[1646570007271,184.04153891,87.602,87.484,22.8139808]
[1646570007473,114.7,87.599,87.485,163.06940125]
[1646570007671,5.711,87.598,87.485,200.86617182]
[1646570007892,114.7,87.597,87.486,22.8139808]
[1646570008071,5.711,87.596,87.486,63.44688663]
[1646570008273,5.711,87.596,87.487,37.79677057]
[1646570008475,74.521,87.596,87.487,63.27788663]
[1646570008675,5.58389615,87.594,87.488,63.27788663]
[1646570008873,114.7,87.587,87.49,17.1479]
[1646570009074,114.7,87.585,87.49,17.1479]
[1646570009273,5.711,87.584,87.491,45.66491319]
[1646570009474,5.711,87.584,87.491,48.50104845]
[1646570009673,114.7,87.582,87.492,48.50104845]
[1646570009875,114.7,87.579,87.492,48.50104845]
[1646570010078,5.711,87.578,87.492,45.66491319]
[1646570010879,17.1517,87.56,87.485,48.36940125]
[1646570011077,166.42623969,87.559,87.485,48.36940125]
[1646570011284,166.42623969,87.559,87.486,22.6449808]
[1646570011490,166.42623969,87.559,87.486,45.66491319]
[1646570011889,166.42623969,87.559,87.487,45.66491319]
[1646570012086,114.7,87.549,87.487,45.66491319]
[1646570012289,5.713,87.548,87.487,45.66491319]
[1646570012791,5.713,87.548,87.474,23.01993239]
[1646570012988,120.413,87.557,87.474,23.01993239]
[1646570013186,120.413,87.557,87.487,22.6449808]
[1646570013387,5.713,87.557,87.487,22.6449808]
[1646570013589,5.713,87.557,87.488,81.97470909]
[1646570013789,24.1035,87.558,87.488,84.81084435]
[1646570013989,24.1035,87.558,87.49,17.1489]
[1646570014488,24.1035,87.558,87.492,114.7]
[1646570014889,24.1035,87.558,87.494,114.7]
[1646570015087,24.1035,87.558,87.5,17.1462]
[1646570015510,24.1035,87.558,87.501,45.66491319]
[1646570015907,24.1035,87.558,87.502,45.66491319]
[1646570017208,24.1035,87.558,87.51,17.1448]
[1646570017608,24.1035,87.558,87.495,14.77683818]
[1646570017812,114.7,87.556,87.495,14.77683818]
[1646570018015,123.05,87.556,87.488,58.9547767]
[1646570018210,14.062,87.556,87.488,58.9547767]
[1646570018611,8.35,87.556,87.489,2.83613526]
[1646570018811,47.8415175,87.557,87.489,2.83613526]
[1646570019510,47.8415175,87.557,87.489,17.61297344]
[1646570019712,47.8415175,87.557,87.489,40.25795424]
[1646570019911,24.1035,87.558,87.491,114.7]
[1646570020111,24.1035,87.558,87.49,43.00476765]
[1646570020313,24.1035,87.558,87.492,17.61297344]
[1646570020510,114.7,87.557,87.492,17.61297344]
[1646570020913,114.7,87.555,87.492,17.61297344]
[1646570021117,51.99182977,87.556,87.493,25.48111606]
[1646570021515,51.99182977,87.556,87.494,22.6449808]
[1646570021713,51.99182977,87.556,87.494,25.48111606]
[1646570021914,51.99182977,87.556,87.495,2.83613526]
[1646570022315,51.99182977,87.556,87.496,22.6449808]
[1646570022715,51.99182977,87.556,87.497,2.83613526]
[1646570022920,24.1035,87.558,87.5,17.1463]
[1646570023317,24.1035,87.558,87.501,17.61297344]
[1646570023517,24.1035,87.558,87.501,40.25795424]
[1646570023718,24.1035,87.558,87.502,2.83613526]
[1646570023917,52.72127566,87.557,87.502,2.83613526]
[1646570024920,5.712,87.556,87.502,2.83613526]
[1646570025522,52.72127566,87.557,87.502,2.83613526]
[1646570025921,52.72127566,87.557,87.51,17.1448]
[1646570026720,24.1035,87.558,87.51,17.1448]
[1646570026922,24.1035,87.558,87.511,2.83613526]
[1646570028324,24.1035,87.558,87.52,17.1427]
[1646570028525,5.712,87.582,87.52,17.1427]
[1646570028729,5.712,87.582,87.521,2.83613526]
[1646570029122,24.8111,87.583,87.521,2.83613526]
[1646570029323,24.8111,87.583,87.522,51.96587822]
[1646570029324,58.17545257,87.582,87.522,51.96587822]
[1646570029725,58.17545257,87.582,87.523,2.83613526]
[1646570030125,58.17545257,87.582,87.53,17.1409]
[1646570030524,58.17545257,87.582,87.531,2.83613526]
[1646570031127,24.8111,87.583,87.531,2.83613526]
[1646570031434,3.11954161,87.599,87.531,2.83613526]
[1646570031629,23.7741,87.601,87.532,37.42181898]
[1646570032029,23.7741,87.601,87.533,40.25795424]
[1646570032229,50.21265263,87.6,87.533,40.25795424]
[1646570032430,50.21265263,87.6,87.54,17.1388]
[1646570032830,50.21265263,87.6,87.541,2.83613526]
[1646570033030,23.7741,87.601,87.541,2.83613526]
[1646570033429,23.7741,87.601,87.541,17.61297344]
[1646570033629,23.7741,87.601,87.542,22.6449808]
[1646570033830,23.7741,87.601,87.542,48.50104845]
[1646570034031,5.708,87.627,87.543,40.63290583]
[1646570034234,60.42735622,87.626,87.55,17.1367]
[1646570034530,11.95368407,87.625,87.551,47.9896649]
[1646570034730,6.24568407,87.624,87.552,5.708]
[1646570034934,5.708,87.623,87.552,8.54413526]
[1646570035336,5.708,87.624,87.553,2.83613526]
[1646570035536,5.708,87.624,87.56,17.135]
[1646570035739,5.708,87.625,87.56,17.135]
[1646570035936,120.408,87.625,87.56,17.135]
[1646570036136,6.24597078,87.624,87.553,2.83613526]
[1646570036337,5.708,87.623,87.553,2.83613526]
[1646570036736,5.708,87.623,87.554,5.708]
[1646570036937,5.708,87.624,87.554,5.708]
[1646570037137,114.7,87.622,87.554,2.83613526]
[1646570037338,5.708,87.621,87.551,47.9896649]
[1646570037836,5.708,87.621,87.545,5.708]
[1646570038037,114.7,87.619,87.545,5.708]
[1646570038239,5.708,87.618,87.545,2.83613526]
[1646570038737,5.708,87.618,87.546,60.7212927]
[1646570038937,5.708,87.623,87.546,60.7212927]
[1646570039138,5.708,87.623,87.55,17.1367]
[1646570039336,6.2463852,87.622,87.55,17.1367]
[1646570039537,5.708,87.621,87.55,17.1367]
[1646570039738,5.708,87.621,87.551,2.83613526]
[1646570039938,6.2463852,87.62,87.551,2.83613526]
[1646570040137,5.708,87.619,87.551,2.83613526]
[1646570040337,5.708,87.619,87.551,8.54413526]
[1646570040541,5.708,87.623,87.551,8.54413526]
[1646570040745,17.1395,87.62,87.551,8.54413526]
[1646570040942,120.408,87.619,87.551,2.83613526]
[1646570041342,5.708,87.623,87.551,2.83613526]
[1646570041542,6.24632286,87.622,87.551,2.83613526]
[1646570042260,114.7,87.621,87.551,2.83613526]
[1646570042463,114.7,87.619,87.551,2.83613526]
[1646570042661,5.708,87.623,87.551,2.83613526]
[1646570042861,6.2463427,87.622,87.551,2.83613526]
[1646570043264,114.7,87.621,87.551,2.83613526]
[1646570043662,10.20990446,87.623,87.538,2.83613526]
[1646570043663,114.7,87.619,87.538,2.83613526]
[1646570043862,114.7,87.599,87.538,2.83613526]
[1646570044265,120.408,87.599,87.539,5.708]
[1646570044468,114.7,87.597,87.539,5.708]
[1646570044666,114.7,87.597,87.455,99.34312826]
[1646570044667,119.6133585,87.595,87.521,2.83613526]
[1646570044869,114.7,87.589,87.521,2.83613526]
[1646570045066,5.71,87.588,87.521,2.83613526]
[1646570045468,5.71,87.596,87.522,63.21559649]
[1646570045875,6.24800945,87.595,87.522,63.21559649]
[1646570046068,5.71,87.594,87.522,66.05173175]
[1646570046268,120.41,87.594,87.522,66.05173175]
[1646570046468,114.7,87.592,87.522,66.05173175]
[1646570046669,114.7,87.592,87.522,89.65004588]
[1646570047370,120.41,87.596,87.522,89.65004588]
[1646570047669,120.94802855,87.595,87.522,66.05173175]
[1646570048071,6.24802855,87.594,87.523,23.59831413]
[1646570048269,6.24802855,87.596,87.523,23.59831413]
[1646570048472,6.24802855,87.596,87.523,26.43444939]
[1646570048668,114.7,87.589,87.523,26.43444939]
[1646570049070,114.7,87.589,87.523,2.83613526]
[1646570049269,5.71,87.588,87.523,2.83613526]
[1646570049872,120.41,87.588,87.523,2.83613526]
[1646570050871,5.71,87.588,87.523,2.83613526]
[1646570051074,5.71,87.595,87.523,2.83613526]
[1646570051273,114.7,87.589,87.523,2.83613526]
[1646570051472,5.71,87.588,87.523,2.83613526]
[1646570052674,6.24856423,87.587,87.523,2.83613526]
[1646570052875,120.41,87.586,87.523,2.83613526]
[1646570053275,120.94856423,87.585,87.523,2.83613526]
[1646570053473,11.95856423,87.584,87.523,26.43444939]
[1646570053676,6.24856423,87.583,87.523,26.43444939]
[1646570053874,5.71,87.582,87.523,26.43444939]
[1646570054074,5.71,87.59,87.523,26.43444939]
[1646570054274,114.7,87.588,87.523,26.43444939]
[1646570054475,114.7,87.586,87.523,26.43444939]
[1646570054674,5.71,87.585,87.523,26.43444939]
[1646570054876,117.81954161,87.596,87.523,26.43444939]
[1646570055076,126.65810724,87.595,87.523,26.43444939]
[1646570055278,6.24810724,87.594,87.523,26.43444939]
[1646570055482,3.11954161,87.589,87.519,5.708]
[1646570055680,3.11954161,87.589,87.513,2.83613526]
[1646570055978,114.7,87.579,87.513,2.83613526]
[1646570056179,114.7,87.577,87.513,2.83613526]
[1646570056378,5.711,87.576,87.513,2.83613526]
[1646570057481,114.7,87.569,87.506,23.7389]
[1646570057679,5.711,87.568,87.506,23.7389]
[1646570058080,5.711,87.568,87.506,47.33721413]